[Event "DMP Ekstraliga 2020"]
[Site "Krakow"]
[Date "2020.08.28"]
[Round "3.3"]
[White "Markowski, Tomasz"]
[Black "Piorun, Kacper"]
[Result "0-1"]
[ECO "A48"]
[WhiteElo "2548"]
[BlackElo "2596"]
[Annotator "ChessBase"]
[PlyCount "198"]
[EventDate "2020.08.26"]
[EventType "team-tourn"]
[EventCountry "POL"]
[SourceTitle "playchess.com"]
[Source "ChessBase"]
[SourceQuality "1"]
[TimeControl "30/5400+30:1800+30"]

1. d4 {[%emt 0:00:00]} Nf6 {[%emt 0:00:00]} 2. Nf3 {[%emt 0:00:00]} g6 {[%emt 0:00:00]} 3. c3 {[%emt 0:00:05]} Bg7 {[%emt 0:00:00]} 4. Bf4 {[%emt 0:00:05]} O-O {[%emt 0:00:25]} 5. e3 {[%emt 0:01:23]} b6 {[%emt 0:00:48]} 6. a4 {[%emt 0:00:32]} a5 {[%emt 0:00:22]} 7. Be2 {[%emt 0:00:35]} Bb7 {[%emt 0:00:06]} 8. O-O {[%emt 0:00:05]} d6 {[%emt 0:01:47]} 9. h3 {[%emt 0:00:11]} e6 {[%emt 0:06:15]} 10. Nbd2 {[%emt 0:01:45]} Qe7 {[%emt 0:00:32]} 11. Qc2 {[%emt 0:00:22]} Nc6 {[%emt 0:03:37]} 12. Bh2 {[%emt 0:01:10]} Nd7 {[%emt 0:02:24]} 13. Rfd1 {[%emt 0:03:58]} e5 {[%emt 0:01:49]} 14. dxe5 {[%emt 0:06:08]} Ncxe5 {[%emt 0:03:09]} 15. Nxe5 {[%emt 0:00:46]} Bxe5 {[%emt 0:06:50]} 16. Bf3 {[%emt 0:01:16]} Bxh2+ {[%emt 0:00:16]} 17. Kxh2 {[%emt 0:00:04]} Bxf3 {[%emt 0:00:09]} 18. Nxf3 {[%emt 0:00:07]} Nc5 {[%emt 0:00:21]} 19. Kg1 {[%emt 0:03:09]} f5 {[%emt 0:01:50]} 20. b4 {[%emt 0:07:10]} Ne4 {[%emt 0:00:07]} 21. Nd2 {[%emt 0:00:37]} Nf6 {[%emt 0:05:20]} 22. Nb3 {[%emt 0:03:35]} Qf7 {[%emt 0:10:19]} 23. bxa5 {[%emt 0:02:43]} bxa5 {[%emt 0:00:07]} 24. Rab1 {[%emt 0:01:10]} Rfb8 {[%emt 0:08:55]} 25. Nd2 {[%emt 0:08:17]} Nd7 {[%emt 0:19:41]} 26. Nb3 {[%emt 0:09:58]} Qc4 {[%emt 0:09:31]} 27. Rd4 {[%emt 0:02:08]} Qe6 {[%emt 0:01:31]} 28. Rdd1 {[%emt 0:06:07]} Qc4 {[%emt 0:00:55]} 29. Rd4 {[%emt 0:00:04]} Qf7 {[%emt 0:06:40]} 30. Rdd1 {[%emt 0:00:32]} Nb6 {[%emt 0:00:58]} 31. Rd4 {[%emt 0:32:04]} Nc4 {[%emt 0:31:07]} 32. Nd2 {[%emt 0:02:38]} Ne5 {[%emt 0:00:44]} 33. e4 {[%emt 0:06:09]} f4 {[%emt 0:04:08]} 34. Rd5 {[%emt 0:01:43]} f3 {[%emt 0:02:09]} 35. Rdb5 {[%emt 0:08:01]} Rxb5 {[%emt 0:00:08]} 36. Rxb5 {[%emt 0:00:04]} Kg7 {[%emt 0:03:01]} 37. g3 {[%emt 0:04:38]} h5 {[%emt 0:01:35]} 38. Qb3 {[%emt 0:01:25]} Qe7 {[%emt 0:00:50]} 39. c4 {[%emt 0:13:36]} Rf8 {[%emt 0:00:07]} 40. Rxa5 {[%emt 0:00:00]} Qe6 {[%emt 0:00:00]} 41. Kh2 {[%emt 0:00:00]} h4 {[%emt 0:00:00]} 42. gxh4 {[%emt 0:00:00]} Rf4 {[%emt 0:00:00]} 43. c5 {[%emt 0:00:00]} Qc8 {[%emt 0:00:00]} 44. Qb1 {[%emt 0:00:00]} Rxh4 {[%emt 0:00:00]} 45. Qf1 {[%emt 0:00:00]} Qf8 {[%emt 0:00:00]} 46. cxd6 {[%emt 0:00:00]} Qf4+ {[%emt 0:00:00]} 47. Kg1 {[%emt 0:00:00]} Qg5+ {[%emt 0:00:54]} 48. Kh1 {[%emt 0:00:00]} Qg4 {[%emt 0:01:40]} 49. Kh2 {[%emt 0:00:00]} cxd6 {[%emt 0:01:23]} 50. Rd5 {[%emt 0:00:00]} Qf4+ {[%emt 0:01:01]} 51. Kg1 {[%emt 0:00:00]} Rh5 {[%emt 0:00:44]} 52. a5 {[%emt 0:00:00]} Rg5+ {[%emt 0:00:46]} 53. Kh1 {[%emt 0:00:00]} Qh4 {[%emt 0:00:35]} 54. Rxd6 {[%emt 0:00:00]} Rg2 {[%emt 0:00:25]} 55. Qxg2 {[%emt 0:00:00]} fxg2+ {[%emt 0:00:01]} 56. Kxg2 {[%emt 0:00:00]} Qe7 {[%emt 0:00:33]} 57. Rd5 {[%emt 0:00:00]} Nc4 {[%emt 0:01:11]} 58. Kf1 {[%emt 0:00:00]} Ne5 {[%emt 0:00:05]} 59. Kg2 {[%emt 0:00:09]} Nc6 {[%emt 0:00:05]} 60. a6 {[%emt 0:02:40]} Qa7 {[%emt 0:00:25]} 61. Nf3 {[%emt 0:01:04]} Qxa6 {[%emt 0:01:00]} 62. Rg5 {[%emt 0:00:23]} Qd3 {[%emt 0:00:43]} 63. Rg4 {[%emt 0:00:12]} Ne7 {[%emt 0:00:09]} 64. Nh4 {[%emt 0:01:44]} Kh6 {[%emt 0:00:36]} 65. Nf3 {[%emt 0:00:01]} Qd6 {[%emt 0:00:38]} 66. Rh4+ {[%emt 0:00:19]} Kg7 {[%emt 0:00:02]} 67. Rg4 {[%emt 0:00:01]} Kf8 {[%emt 0:00:34]} 68. Nh4 {[%emt 0:00:18]} Ke8 {[%emt 0:00:40]} 69. Rg3 {[%emt 0:00:30]} Qf6 {[%emt 0:00:32]} 70. Rg4 {[%emt 0:00:06]} Kd7 {[%emt 0:00:39]} 71. Nf3 {[%emt 0:00:16]} Kc7 {[%emt 0:00:30]} 72. Rg3 {[%emt 0:00:26]} Kb6 {[%emt 0:00:18]} 73. Rg4 {[%emt 0:00:08]} Kc5 {[%emt 0:00:17]} 74. Kg3 {[%emt 0:00:47]} Qa1 {[%emt 0:00:31]} 75. Kg2 {[%emt 0:00:12]} Qf6 {[%emt 0:00:56]} 76. Kg3 {[%emt 0:00:06]} Nc6 {[%emt 0:00:38]} 77. Kg2 {[%emt 0:01:00]} Qe6 {[%emt 0:00:19]} 78. Rg5+ {[%emt 0:01:10]} Kb4 {[%emt 0:00:45]} 79. Rg3 {[%emt 0:00:20]} Kc5 {[%emt 0:00:45]} 80. Rg5+ {[%emt 0:00:07]} Kb6 {[%emt 0:00:04]} 81. Rg4 {[%emt 0:00:09]} Qf6 {[%emt 0:00:16]} 82. Kg3 {[%emt 0:00:48]} Nd8 {[%emt 0:00:17]} 83. Ng5 {[%emt 0:01:21]} Nb7 {[%emt 0:01:16]} 84. Nf3 {[%emt 0:00:47]} Nc5 {[%emt 0:00:14]} 85. Rf4 {[%emt 0:01:23]} Qc6 {[%emt 0:00:33]} 86. e5 {[%emt 0:01:46]} Ne4+ {[%emt 0:00:40]} 87. Kg2 {[%emt 0:00:05]} Kc5 {[%emt 0:00:39]} 88. h4 {[%emt 0:00:18]} Kd5 {[%emt 0:00:33]} 89. Ng5 {[%emt 0:01:43]} Nc5 {[%emt 0:00:30]} 90. Rf6 {[%emt 0:01:33]} Qb7 {[%emt 0:00:08]} 91. e6 {[%emt 0:01:15]} Kd6+ {[%emt 0:00:21]} 92. Kh2 {[%emt 0:02:14]} Qb4 {[%emt 0:00:30]} 93. Kg3 {[%emt 0:00:41]} Qe1 {[%emt 0:00:42]} 94. Kg2 {[%emt 0:00:34]} Nd3 {[%emt 0:00:26]} 95. Rf3 {[%emt 0:01:12]} Qe2 {[%emt 0:00:13]} 96. Kg3 {[%emt 0:01:08]} Ne1 {[%emt 0:00:35]} 97. Re3 {[%emt 0:00:56]} Qf1 {[%emt 0:00:04]} 98. e7 Qg2+ {[%emt 0:00:30]} 99. Kf4 Qxf2+ {[%emt 0:00:30]} 0-1

[Event "DMP Ekstraliga 2020"]
[Site "Krakow"]
[Date "2020.08.28"]
[Round "3.4"]
[White "Krasenkow, Michal"]
[Black "Krzyzanowski, Marcin"]
[Result "1-0"]
[ECO "D46"]
[WhiteElo "2605"]
[BlackElo "2518"]
[Annotator "ChessBase"]
[PlyCount "103"]
[EventDate "2020.08.26"]
[EventType "team-tourn"]
[EventCountry "POL"]
[SourceTitle "playchess.com"]
[Source "ChessBase"]
[SourceQuality "1"]
[TimeControl "30/5400+30:1800+30"]

1. Nf3 {[%emt 0:00:00]} d5 {[%emt 0:00:00]} 2. d4 {[%emt 0:00:00]} Nf6 {[%emt 0:00:00]} 3. c4 {[%emt 0:00:00]} c6 {[%emt 0:00:00]} 4. Nc3 {[%emt 0:00:00]} e6 {[%emt 0:00:00]} 5. e3 {[%emt 0:00:00]} Nbd7 {[%emt 0:00:00]} 6. Bd3 {[%emt 0:00:00]} Bd6 {[%emt 0:00:04]} 7. e4 {[%emt 0:00:00]} dxe4 {[%emt 0:00:13]} 8. Nxe4 {[%emt 0:00:01]} Nxe4 {[%emt 0:00:08]} 9. Bxe4 {[%emt 0:00:04]} Nf6 {[%emt 0:00:45]} 10. Bc2 {[%emt 0:00:12]} c5 {[%emt 0:01:50]} 11. O-O {[%emt 0:00:44]} O-O {[%emt 0:01:21]} 12. Qd3 {[%emt 0:01:41]} h6 {[%emt 0:15:14]} 13. Rd1 {[%emt 0:01:09]} Qc7 {[%emt 0:10:05]} 14. dxc5 {[%emt 0:00:43]} Bxc5 {[%emt 0:00:08]} 15. b4 {[%emt 0:00:10]} Be7 {[%emt 0:02:12]} 16. Bb2 {[%emt 0:00:23]} Rd8 {[%emt 0:00:34]} 17. Qe2 {[%emt 0:00:19]} Bd7 {[%emt 0:03:03]} 18. Be5 {[%emt 0:06:44]} Qc8 {[%emt 0:11:12]} 19. Bc3 {[%emt 0:10:37]} Be8 {[%emt 0:06:38]} 20. Ne5 {[%emt 0:10:57]} Qc7 {[%emt 0:03:56]} 21. a4 {[%emt 0:15:19]} Rac8 {[%emt 0:05:28]} 22. Rxd8 {[%emt 0:10:10]} Rxd8 {[%emt 0:00:39]} 23. Qe3 {[%emt 0:04:06]} b6 {[%emt 0:03:25]} 24. h3 {[%emt 0:14:02]} Rc8 {[%emt 0:02:54]} 25. Rc1 {[%emt 0:01:01]} Kf8 {[%emt 0:07:37]} 26. Bb3 {[%emt 0:02:25]} Kg8 {[%emt 0:04:00]} 27. Rd1 {[%emt 0:03:05]} Qb7 {[%emt 0:06:24]} 28. Bc2 {[%emt 0:03:43]} Qc7 {[%emt 0:00:41]} 29. Rd3 {[%emt 0:05:23]} Qb7 {[%emt 0:01:20]} 30. Qe2 {[%emt 0:01:56]} Ne4 {[%emt 0:07:00]} 31. Bb2 {[%emt 0:30:04]} f5 {[%emt 0:33:01]} 32. f3 {[%emt 0:02:54]} Ng3 {[%emt 0:01:57]} 33. Qe1 {[%emt 0:00:31]} Nh5 {[%emt 0:00:11]} 34. Bb3 {[%emt 0:00:53]} Kh7 {[%emt 0:00:42]} 35. c5 {[%emt 0:01:33]} Nf4 {[%emt 0:02:09]} 36. Rd4 {[%emt 0:00:14]} Bg5 {[%emt 0:00:15]} 37. h4 {[%emt 0:03:30]} bxc5 {[%emt 0:00:43]} 38. Rc4 {[%emt 0:00:10]} cxb4 {[%emt 0:01:21]} 39. hxg5 {[%emt 0:00:30]} Rxc4 {[%emt 0:01:04]} 40. Nxc4 {[%emt 0:00:00]} hxg5 {[%emt 0:00:00]} 41. Qe5 {[%emt 0:00:00]} Qd7 {[%emt 0:00:00]} 42. Qb8 {[%emt 0:00:00]} a5 {[%emt 0:00:00]} 43. Nd6 {[%emt 0:00:00]} Qc6 {[%emt 0:00:00]} 44. Qa7 {[%emt 0:00:00]} Bd7 {[%emt 0:00:00]} 45. Nf7 {[%emt 0:00:00]} Nd3 {[%emt 0:00:00]} 46. Ne5 {[%emt 0:00:00]} Nxe5 {[%emt 0:00:00]} 47. Bxe5 {[%emt 0:00:00]} Qc1+ {[%emt 0:00:00]} 48. Kh2 {[%emt 0:00:00]} Qe1 {[%emt 0:00:00]} 49. Qd4 {[%emt 0:00:00]} Bc6 {[%emt 0:00:00]} 50. Bxe6 {[%emt 0:00:00]} f4 {[%emt 0:00:00]} 51. Bf5+ {[%emt 0:00:00]} g6 {[%emt 0:00:00]} 52. Qa7+ {[%emt 0:00:00]} 1-0

[Event "DMP Ekstraliga 2020"]
[Site "Krakow"]
[Date "2020.08.28"]
[Round "3.5"]
[White "Jakubowski, Krzysztof"]
[Black "Janik, Igor"]
[Result "1/2-1/2"]
[ECO "A46"]
[WhiteElo "2481"]
[BlackElo "2471"]
[Annotator "ChessBase"]
[PlyCount "27"]
[EventDate "2020.08.26"]
[EventType "team-tourn"]
[EventCountry "POL"]
[SourceTitle "playchess.com"]
[Source "ChessBase"]
[SourceQuality "1"]
[TimeControl "30/5400+30:1800+30"]

1. d4 {[%emt 0:00:00]} Nf6 {[%emt 0:00:00]} 2. Nf3 {[%emt 0:00:00]} e6 {[%emt 0:00:00]} 3. Bf4 {[%emt 0:00:00]} c5 {[%emt 0:04:30]} 4. c3 {[%emt 0:00:20]} Qb6 {[%emt 0:02:15]} 5. Qb3 {[%emt 0:00:20]} d5 {[%emt 0:01:25]} 6. Nbd2 {[%emt 0:03:08]} Be7 {[%emt 0:05:52]} 7. e3 {[%emt 0:01:11]} Bd7 {[%emt 0:02:28]} 8. Be2 {[%emt 0:10:01]} O-O {[%emt 0:03:52]} 9. O-O {[%emt 0:01:53]} Rc8 {[%emt 0:00:06]} 10. Ne5 {[%emt 0:07:14]} Nc6 {[%emt 0:04:13]} 11. Qxb6 {[%emt 0:02:53]} axb6 {[%emt 0:00:18]} 12. Nxd7 {[%emt 0:00:13]} Nxd7 {[%emt 0:00:06]} 13. a3 {[%emt 0:00:04]} Bd8 {[%emt 0:03:45]} 14. Rad1 {[%emt 0:05:03]} 1/2-1/2

[Event "DMP Ekstraliga 2020"]
[Site "Krakow"]
[Date "2020.08.28"]
[Round "3.6"]
[White "Antolak, Julia"]
[Black "Worek, Joanna"]
[Result "1-0"]
[ECO "B93"]
[WhiteElo "2323"]
[BlackElo "2326"]
[Annotator "ChessBase"]
[PlyCount "131"]
[EventDate "2020.08.26"]
[EventType "team-tourn"]
[EventCountry "POL"]
[SourceTitle "playchess.com"]
[Source "ChessBase"]
[SourceQuality "1"]
[TimeControl "30/5400+30:1800+30"]

1. e4 {[%emt 0:00:00]} c5 {[%emt 0:00:00]} 2. Nf3 {[%emt 0:00:00]} d6 {[%emt 0:00:00]} 3. d4 {[%emt 0:00:00]} cxd4 {[%emt 0:00:00]} 4. Nxd4 {[%emt 0:00:00]} Nf6 {[%emt 0:00:00]} 5. Nc3 {[%emt 0:00:00]} a6 {[%emt 0:00:01]} 6. f4 {[%emt 0:00:40]} Nc6 {[%emt 0:03:33]} 7. Nxc6 {[%emt 0:14:02]} bxc6 {[%emt 0:00:06]} 8. e5 {[%emt 0:03:10]} dxe5 {[%emt 0:06:22]} 9. Qxd8+ {[%emt 0:00:07]} Kxd8 {[%emt 0:00:04]} 10. fxe5 {[%emt 0:00:05]} Ng4 {[%emt 0:15:39]} 11. Bf4 {[%emt 0:03:01]} g5 {[%emt 0:03:30]} 12. Bxg5 {[%emt 0:02:05]} Bg7 {[%emt 0:00:22]} 13. Be2 {[%emt 0:07:15]} Nxe5 {[%emt 0:08:52]} 14. O-O-O+ {[%emt 0:02:13]} Ke8 {[%emt 0:00:06]} 15. Rhe1 {[%emt 0:06:52]} Be6 {[%emt 0:12:08]} 16. Na4 {[%emt 0:07:28]} a5 {[%emt 0:16:10]} 17. Bh5 {[%emt 0:10:53]} Kf8 {[%emt 0:08:21]} 18. Nc5 {[%emt 0:04:02]} Bf5 {[%emt 0:01:46]} 19. Rf1 {[%emt 0:04:47]} Bg6 {[%emt 0:06:58]} 20. Bxg6 {[%emt 0:03:40]} Nxg6 {[%emt 0:00:39]} 21. Ne6+ {[%emt 0:00:20]} Kg8 {[%emt 0:00:12]} 22. Rd8+ {[%emt 0:02:16]} Rxd8 {[%emt 0:00:14]} 23. Nxd8 {[%emt 0:00:04]} f6 {[%emt 0:02:33]} 24. Bd2 {[%emt 0:01:49]} Ne5 {[%emt 0:00:06]} 25. Bxa5 {[%emt 0:02:21]} Bh6+ {[%emt 0:00:08]} 26. Kb1 {[%emt 0:02:02]} Kg7 {[%emt 0:02:31]} 27. Ne6+ {[%emt 0:00:19]} Kf7 {[%emt 0:00:24]} 28. Nd4 {[%emt 0:00:50]} Nc4 {[%emt 0:04:07]} 29. Bc3 {[%emt 0:03:43]} Bd2 {[%emt 0:02:37]} 30. Rd1 {[%emt 0:05:05]} Bxc3 {[%emt 0:02:54]} 31. bxc3 {[%emt 0:30:06]} Rd8 {[%emt 0:30:04]} 32. Rd3 {[%emt 0:02:12]} Ne5 {[%emt 0:01:34]} 33. Rh3 {[%emt 0:02:43]} c5 {[%emt 0:01:25]} 34. Rxh7+ {[%emt 0:03:45]} Kg6 {[%emt 0:00:07]} 35. Rg7+ {[%emt 0:00:06]} Kh5 {[%emt 0:01:17]} 36. Nf5 {[%emt 0:03:54]} e6 {[%emt 0:01:43]} 37. Ne3 {[%emt 0:01:17]} Rd2 {[%emt 0:00:41]} 38. Kc1 {[%emt 0:04:08]} Re2 {[%emt 0:00:44]} 39. Rg3 {[%emt 0:00:10]} f5 {[%emt 0:00:08]} 40. Kd1 {[%emt 0:00:00]} Rf2 {[%emt 0:00:00]} 41. Ke1 {[%emt 0:00:00]} Rf4 {[%emt 0:00:00]} 42. Nf1 {[%emt 0:00:00]} Ng6 {[%emt 0:00:00]} 43. Re3 {[%emt 0:00:00]} e5 {[%emt 0:00:00]} 44. Ng3+ {[%emt 0:00:00]} Kg5 {[%emt 0:00:00]} 45. Rf3 {[%emt 0:00:00]} Nh4 {[%emt 0:00:00]} 46. Rxf4 {[%emt 0:00:00]} Nxg2+ {[%emt 0:00:00]} 47. Kf2 {[%emt 0:00:00]} Nxf4 {[%emt 0:00:00]} 48. a4 {[%emt 0:00:00]} Nd5 {[%emt 0:00:00]} 49. a5 {[%emt 0:00:00]} Nxc3 {[%emt 0:00:00]} 50. a6 {[%emt 0:00:00]} Nb5 {[%emt 0:00:00]} 51. c4 {[%emt 0:00:00]} Na7 {[%emt 0:00:00]} 52. Kf3 {[%emt 0:00:00]} Nc6 {[%emt 0:00:00]} 53. h4+ {[%emt 0:00:00]} Kf6 {[%emt 0:03:06]} 54. h5 {[%emt 0:01:16]} Nd4+ {[%emt 0:00:45]} 55. Kg2 {[%emt 0:02:19]} Ne6 {[%emt 0:01:37]} 56. a7 {[%emt 0:00:32]} Nc7 {[%emt 0:00:02]} 57. h6 {[%emt 0:00:13]} f4 {[%emt 0:04:01]} 58. Nf5 {[%emt 0:00:15]} Kg6 {[%emt 0:00:09]} 59. Kf3 {[%emt 0:00:11]} Na8 {[%emt 0:00:26]} 60. Ke4 {[%emt 0:00:15]} Nb6 {[%emt 0:00:04]} 61. Kxe5 {[%emt 0:01:40]} f3 {[%emt 0:01:15]} 62. Nh4+ {[%emt 0:00:21]} Kxh6 {[%emt 0:00:04]} 63. Nxf3 {[%emt 0:00:04]} Kg6 {[%emt 0:00:12]} 64. Ke6 {[%emt 0:00:31]} Kg7 {[%emt 0:01:10]} 65. Ne5 {[%emt 0:00:18]} Na8 {[%emt 0:00:25]} 66. Nd7 {[%emt 0:00:44]} 1-0

[Event "DMP Ekstraliga 2020"]
[Site "Krakow"]
[Date "2020.08.28"]
[Round "3.7"]
[White "Matuszewski, Michal"]
[Black "Harikrishna, Pentala"]
[Result "0-1"]
[ECO "A45"]
[WhiteElo "2508"]
[BlackElo "2732"]
[Annotator "ChessBase"]
[PlyCount "144"]
[EventDate "2020.08.26"]
[EventType "team-tourn"]
[EventCountry "POL"]
[SourceTitle "playchess.com"]
[Source "ChessBase"]
[SourceQuality "1"]
[TimeControl "30/5400+30:1800+30"]

1. d4 {[%emt 0:00:00]} Nf6 {[%emt 0:00:00]} 2. Bg5 {[%emt 0:00:00]} d5 {[%emt 0:00:00]} 3. Nd2 {[%emt 0:00:00]} c5 {[%emt 0:00:26]} 4. Bxf6 {[%emt 0:00:00]} gxf6 {[%emt 0:00:09]} 5. dxc5 {[%emt 0:00:03]} e6 {[%emt 0:01:21]} 6. e4 {[%emt 0:00:05]} Nc6 {[%emt 0:03:55]} 7. Ne2 {[%emt 0:00:05]} f5 {[%emt 0:05:48]} 8. exf5 {[%emt 0:08:59]} Bxc5 {[%emt 0:01:24]} 9. Nb3 {[%emt 0:00:44]} Bb6 {[%emt 0:00:20]} 10. Nf4 {[%emt 0:04:31]} Qf6 {[%emt 0:06:16]} 11. Be2 {[%emt 0:14:34]} Qxf5 {[%emt 0:07:19]} 12. Qd2 {[%emt 0:02:13]} e5 {[%emt 0:09:17]} 13. Nd3 {[%emt 0:07:20]} e4 {[%emt 0:10:32]} 14. Nf4 {[%emt 0:11:51]} d4 {[%emt 0:02:44]} 15. O-O-O {[%emt 0:17:32]} Bd7 {[%emt 0:03:44]} 16. Bc4 {[%emt 0:05:54]} Ne5 {[%emt 0:08:34]} 17. Bd5 {[%emt 0:03:16]} O-O-O {[%emt 0:02:28]} 18. g3 {[%emt 0:09:41]} Nf3 {[%emt 0:04:20]} 19. Qb4 {[%emt 0:02:13]} Bc6 {[%emt 0:05:18]} 20. Bxc6 {[%emt 0:01:20]} bxc6 {[%emt 0:00:08]} 21. a4 {[%emt 0:00:14]} d3 {[%emt 0:01:07]} 22. Qc3 {[%emt 0:04:19]} Nd4 {[%emt 0:03:02]} 23. cxd3 {[%emt 0:02:11]} Qxf4+ {[%emt 0:05:25]} 24. gxf4 {[%emt 0:00:07]} Ne2+ {[%emt 0:00:02]} 25. Kc2 {[%emt 0:00:27]} Nxc3 {[%emt 0:00:05]} 26. Kxc3 {[%emt 0:00:32]} exd3 {[%emt 0:01:40]} 27. Rxd3 {[%emt 0:00:03]} Rxd3+ {[%emt 0:00:48]} 28. Kxd3 {[%emt 0:00:02]} Bxf2 {[%emt 0:00:11]} 29. Rc1 {[%emt 0:01:49]} Kd7 {[%emt 0:00:30]} 30. Nc5+ {[%emt 0:01:02]} Kc7 {[%emt 0:03:27]} 31. Ke4 {[%emt 0:32:10]} Rd8 {[%emt 0:31:27]} 32. b4 {[%emt 0:01:36]} Rd5 {[%emt 0:02:16]} 33. Nb3 {[%emt 0:00:58]} f5+ {[%emt 0:00:49]} 34. Kf3 {[%emt 0:00:04]} Bb6 {[%emt 0:01:35]} 35. Ke2 {[%emt 0:00:43]} Rd6 {[%emt 0:03:35]} 36. a5 {[%emt 0:00:35]} Re6+ {[%emt 0:01:05]} 37. Kd3 {[%emt 0:00:25]} Bf2 {[%emt 0:00:11]} 38. Rc2 {[%emt 0:00:49]} Re3+ {[%emt 0:01:02]} 39. Kc4 {[%emt 0:00:02]} Re4+ {[%emt 0:02:01]} 40. Kd3 {[%emt 0:00:00]} Rxb4 {[%emt 0:00:00]} 41. Rxf2 {[%emt 0:00:00]} Rxb3+ {[%emt 0:00:00]} 42. Kc4 {[%emt 0:00:00]} Rb5 {[%emt 0:00:00]} 43. Ra2 {[%emt 0:00:00]} a6 {[%emt 0:00:00]} 44. Ra3 {[%emt 0:00:00]} h5 {[%emt 0:00:00]} 45. Rh3 {[%emt 0:00:00]} Rxa5 {[%emt 0:00:00]} 46. Rxh5 {[%emt 0:00:00]} Kb6 {[%emt 0:00:00]} 47. Kb4 {[%emt 0:00:00]} Rd5 {[%emt 0:00:00]} 48. Kc4 {[%emt 0:00:00]} Rc5+ {[%emt 0:00:00]} 49. Kb3 {[%emt 0:00:00]} Kb5 {[%emt 0:00:00]} 50. h4 {[%emt 0:00:00]} a5 {[%emt 0:00:00]} 51. Rh7 {[%emt 0:00:00]} a4+ {[%emt 0:00:00]} 52. Ka3 {[%emt 0:00:00]} Rc3+ {[%emt 0:00:00]} 53. Kb2 {[%emt 0:00:00]} Rf3 {[%emt 0:00:00]} 54. h5 {[%emt 0:00:00]} Rxf4 {[%emt 0:00:00]} 55. Rf7 {[%emt 0:00:00]} Kb4 {[%emt 0:00:52]} 56. Rb7+ {[%emt 0:00:00]} Kc5 {[%emt 0:00:29]} 57. Rf7 {[%emt 0:00:00]} Kd5 {[%emt 0:01:33]} 58. h6 {[%emt 0:06:25]} Ke6 {[%emt 0:01:18]} 59. Rc7 {[%emt 0:00:10]} Kf6 {[%emt 0:00:08]} 60. Rxc6+ {[%emt 0:01:27]} Kg5 {[%emt 0:00:48]} 61. Ra6 {[%emt 0:01:20]} Rh4 {[%emt 0:01:21]} 62. Kc2 {[%emt 0:00:24]} Rxh6 {[%emt 0:00:08]} 63. Rxa4 {[%emt 0:00:03]} Rd6 {[%emt 0:01:34]} 64. Ra8 {[%emt 0:00:19]} f4 {[%emt 0:00:56]} 65. Rg8+ {[%emt 0:00:22]} Kh4 {[%emt 0:00:37]} 66. Rf8 {[%emt 0:00:50]} Kg3 {[%emt 0:00:09]} 67. Rg8+ {[%emt 0:00:04]} Kf2 {[%emt 0:00:06]} 68. Rf8 {[%emt 0:00:06]} f3 {[%emt 0:00:06]} 69. Rg8 {[%emt 0:00:08]} Ke2 {[%emt 0:00:10]} 70. Re8+ {[%emt 0:00:06]} Kf1 {[%emt 0:00:21]} 71. Rf8 {[%emt 0:00:08]} f2 {[%emt 0:00:26]} 72. Rg8 {[%emt 0:00:04]} Rd5 {[%emt 0:00:30]} 0-1

[Event "DMP Ekstraliga 2020"]
[Site "Krakow"]
[Date "2020.08.28"]
[Round "3.8"]
[White "Bartel, Mateusz"]
[Black "Leniart, Arkadiusz"]
[Result "1/2-1/2"]
[ECO "C45"]
[WhiteElo "2643"]
[BlackElo "2482"]
[Annotator "ChessBase"]
[PlyCount "93"]
[EventDate "2020.08.26"]
[EventType "team-tourn"]
[EventCountry "POL"]
[SourceTitle "playchess.com"]
[Source "ChessBase"]
[SourceQuality "1"]
[TimeControl "30/5400+30:1800+30"]

1. e4 {[%emt 0:00:00]} e5 {[%emt 0:00:00]} 2. Nf3 {[%emt 0:00:00]} Nc6 {[%emt 0:00:00]} 3. d4 {[%emt 0:00:00]} exd4 {[%emt 0:00:00]} 4. Nxd4 {[%emt 0:00:00]} Bc5 {[%emt 0:00:03]} 5. Nb3 {[%emt 0:00:06]} Bb4+ {[%emt 0:03:06]} 6. c3 {[%emt 0:00:04]} Be7 {[%emt 0:00:03]} 7. Bf4 {[%emt 0:00:12]} d6 {[%emt 0:03:35]} 8. N1d2 {[%emt 0:00:03]} Bg5 {[%emt 0:07:09]} 9. Bg3 {[%emt 0:04:46]} Nh6 {[%emt 0:12:41]} 10. h4 {[%emt 0:07:29]} Be7 {[%emt 0:03:25]} 11. Bf4 {[%emt 0:01:25]} Ng4 {[%emt 0:03:58]} 12. Be2 {[%emt 0:01:40]} Nge5 {[%emt 0:00:55]} 13. Be3 {[%emt 0:08:59]} f5 {[%emt 0:11:35]} 14. exf5 {[%emt 0:10:53]} Bxf5 {[%emt 0:00:25]} 15. Nd4 {[%emt 0:00:55]} Nxd4 {[%emt 0:11:48]} 16. cxd4 {[%emt 0:00:11]} Nf7 {[%emt 0:01:18]} 17. Qb3 {[%emt 0:06:06]} Bxh4 {[%emt 0:07:14]} 18. Qb5+ {[%emt 0:05:16]} Bd7 {[%emt 0:00:08]} 19. Qxb7 {[%emt 0:00:07]} Be7 {[%emt 0:03:59]} 20. Bf3 {[%emt 0:27:50]} Rb8 {[%emt 0:02:52]} 21. Qxa7 {[%emt 0:00:08]} O-O {[%emt 0:05:02]} 22. Rc1 {[%emt 0:02:11]} Rxb2 {[%emt 0:02:27]} 23. Rxc7 {[%emt 0:10:28]} Rxa2 {[%emt 0:00:31]} 24. Qxa2 {[%emt 0:01:10]} Qxc7 {[%emt 0:00:03]} 25. O-O {[%emt 0:00:10]} Kh8 {[%emt 0:04:02]} 26. Bd5 {[%emt 0:00:08]} Nd8 {[%emt 0:00:29]} 27. Ne4 {[%emt 0:00:29]} Bf5 {[%emt 0:01:00]} 28. Rc1 {[%emt 0:01:16]} Qd7 {[%emt 0:01:55]} 29. Qa5 {[%emt 0:01:11]} Qe8 {[%emt 0:03:24]} 30. Ng3 {[%emt 0:07:09]} Bg6 {[%emt 0:00:06]} 31. Rc8 {[%emt 0:31:05]} Bh4 {[%emt 0:30:55]} 32. Qc3 {[%emt 0:01:18]} Qb5 {[%emt 0:04:11]} 33. Qc4 {[%emt 0:00:35]} Qb1+ {[%emt 0:02:05]} 34. Qc1 {[%emt 0:01:04]} Qb5 {[%emt 0:00:58]} 35. Bf3 {[%emt 0:02:00]} Re8 {[%emt 0:02:39]} 36. Ra8 {[%emt 0:00:51]} Qb3 {[%emt 0:00:50]} 37. Bg5 {[%emt 0:00:34]} Bxg3 {[%emt 0:02:09]} 38. fxg3 {[%emt 0:00:03]} Ne6 {[%emt 0:00:35]} 39. Rxe8+ {[%emt 0:00:56]} Bxe8 {[%emt 0:00:05]} 40. Be3 {[%emt 0:00:00]} Qb8 {[%emt 0:00:00]} 41. Kh2 {[%emt 0:00:00]} Qd8 {[%emt 0:00:00]} 42. Qa3 {[%emt 0:00:00]} h6 {[%emt 0:00:00]} 43. Qa7 {[%emt 0:00:00]} Bg6 {[%emt 0:00:00]} 44. Bd5 {[%emt 0:00:00]} Ng5 {[%emt 0:00:00]} 45. Bf4 {[%emt 0:00:00]} Kh7 {[%emt 0:00:00]} 46. Qa3 {[%emt 0:00:00]} Nf7 {[%emt 0:00:00]} 47. Bxf7 {[%emt 0:00:00]} 1/2-1/2